[Event "Deloitte NK 2021"]
[Site "Hoogeveen, Netherlands"]
[Date "2021.10.19"]
[Round "5.5"]
[White "Sokolov, Ivan"]
[Black "Swinkels, Robin"]
[Result "0-1"]
[TimeControl "90min/40moves + 30min + 30sec/move"]
[WhiteElo "2595"]
[BlackElo "2509"]

1. d4 {[%clk 01:21:10]} {[%emt 00:09:49]} Nf6 {[%clk 01:30:54]} {[%emt
00:00:06]} 2. c4 {[%clk 01:21:33]} {[%emt 00:00:08]} e6 {[%clk 01:31:20]}
{[%emt 00:00:04]} 3. Nc3 {[%clk 01:19:38]} {[%emt 00:02:25]} d5 {[%clk
01:31:22]} {[%emt 00:00:28]} 4. cxd5 {[%clk 01:18:06]} {[%emt 00:02:02]} exd5
{[%clk 01:31:43]} {[%emt 00:00:09]} 5. Bg5 {[%clk 01:18:33]} {[%emt 00:00:03]}
c6 {[%clk 01:32:05]} {[%emt 00:00:09]} 6. e3 {[%clk 01:18:58]} {[%emt
00:00:04]} h6 {[%clk 01:32:15]} {[%emt 00:00:20]} 7. Bh4 {[%clk 01:17:10]}
{[%emt 00:02:17]} Be7 {[%clk 01:32:36]} {[%emt 00:00:10]} 8. Bd3 {[%clk
01:17:05]} {[%emt 00:00:35]} Nbd7 {[%clk 01:32:58]} {[%emt 00:00:08]} 9. Nge2
{[%clk 01:14:31]} {[%emt 00:03:04]} Nh5 {[%clk 01:32:59]} {[%emt 00:00:29]} 10.
Bxe7 {[%clk 01:13:39]} {[%emt 00:01:22]} Qxe7 {[%clk 01:33:25]} {[%emt
00:00:04]} 11. Qc2 {[%clk 01:10:29]} {[%emt 00:03:40]} Nb6 {[%clk 01:33:31]}
{[%emt 00:00:24]} 12. O-O {[%clk 01:04:00]} {[%emt 00:07:00]} O-O {[%clk
01:33:43]} {[%emt 00:00:18]} 13. Rae1 {[%clk 01:04:28]} {[%emt 00:00:02]} Be6
{[%clk 01:33:20]} {[%emt 00:00:53]} 14. Nc1 {[%clk 01:00:32]} {[%emt 00:04:26]}
Rad8 {[%clk 01:30:57]} {[%emt 00:02:53]} 15. Nb3 {[%clk 01:00:27]} {[%emt
00:00:35]} Rfe8 {[%clk 01:30:59]} {[%emt 00:00:27]} 16. Nc5 {[%clk 00:52:46]}
{[%emt 00:08:11]} Bc8 {[%clk 01:31:01]} {[%emt 00:00:29]} 17. b4 {[%clk
00:50:35]} {[%emt 00:02:41]} Nc4 {[%clk 01:31:26]} {[%emt 00:00:06]} 18. Qe2
{[%clk 00:46:20]} {[%emt 00:04:42]} Qg5 {[%clk 01:27:40]} {[%emt 00:04:18]} 19.
Bxc4 {[%clk 00:40:25]} {[%emt 00:06:25]} dxc4 {[%clk 01:26:18]} {[%emt
00:01:51]} 20. N5e4 {[%clk 00:38:44]} {[%emt 00:02:11]} Qg6 {[%clk 01:11:56]}
{[%emt 00:14:53]} 21. f3 {[%clk 00:38:01]} {[%emt 00:01:13]} f5 {[%clk
00:54:21]} {[%emt 00:18:05]} 22. Nc5 {[%clk 00:35:45]} {[%emt 00:02:46]} Nf4
{[%clk 00:48:13]} {[%emt 00:06:39]} 23. Qd2 {[%clk 00:32:32]} {[%emt 00:03:41]}
Nd5 {[%clk 00:47:43]} {[%emt 00:01:01]} 24. Nxd5 {[%clk 00:32:59]} {[%emt
00:00:03]} cxd5 {[%clk 00:48:03]} {[%emt 00:00:11]} 25. Na4 {[%clk 00:33:26]}
{[%emt 00:00:03]} Qd6 {[%clk 00:47:26]} {[%emt 00:01:07]} 26. b5 {[%clk
00:31:59]} {[%emt 00:01:57]} Bd7 {[%clk 00:37:05]} {[%emt 00:10:51]} 27. Nc3
{[%clk 00:31:46]} {[%emt 00:00:42]} a6 {[%clk 00:36:54]} {[%emt 00:00:42]} 28.
a4 {[%clk 00:28:14]} {[%emt 00:04:01]} axb5 {[%clk 00:35:26]} {[%emt 00:02:00]}
29. axb5 {[%clk 00:28:42]} {[%emt 00:00:01]} Ra8 {[%clk 00:35:41]} {[%emt
00:00:15]} 30. Ra1 {[%clk 00:28:55]} {[%emt 00:00:16]} Be6 {[%clk 00:30:23]}
{[%emt 00:05:48]} 31. h3 {[%clk 00:26:55]} {[%emt 00:02:30]} Bf7 {[%clk
00:28:33]} {[%emt 00:02:20]} 32. Rfe1 {[%clk 00:27:22]} {[%emt 00:00:02]} Qe7
{[%clk 00:27:42]} {[%emt 00:01:22]} 33. Rac1 {[%clk 00:21:07]} {[%emt
00:06:45]} Qh4 {[%clk 00:19:56]} {[%emt 00:08:17]} 34. Qf2 {[%clk 00:19:09]}
{[%emt 00:02:27]} Qg5 {[%clk 00:17:30]} {[%emt 00:02:57]} 35. Kh2 {[%clk
00:18:20]} {[%emt 00:01:18]} Ra3 {[%clk 00:12:18]} {[%emt 00:05:42]} 36. Qg3
{[%clk 00:18:43]} {[%emt 00:00:06]} Qxg3+ {[%clk 00:11:09]} {[%emt 00:01:41]}
37. Kxg3 {[%clk 00:19:11]} {[%emt 00:00:02]} g5 {[%clk 00:11:35]} {[%emt
00:00:04]} 38. Kf2 {[%clk 00:19:22]} {[%emt 00:00:18]} Kg7 {[%clk 00:11:58]}
{[%emt 00:00:08]} 39. g4 {[%clk 00:17:21]} {[%emt 00:02:31]} fxg4 {[%clk
00:05:33]} {[%emt 00:06:55]} 40. hxg4 {[%clk 00:17:46]} {[%emt 00:00:04]} Rd8
{[%clk 00:03:23]} {[%emt 00:02:40]} 41. Red1 {[%clk 00:05:34]} {[%emt
00:12:42]} Bg6 {[%clk 00:24:27]} {[%emt 00:09:27]} 42. e4 {[%clk 00:34:44]}
{[%emt 00:01:19]} dxe4 {[%clk 00:24:24]} {[%emt 00:00:34]} 43. fxe4 {[%clk
00:31:36]} {[%emt 00:03:38]} Rf8+ {[%clk 00:24:51]} {[%emt 00:00:03]} 44. Ke3
{[%clk 00:05:58]} {[%emt 00:26:07]} Rf4 {[%clk 00:22:23]} {[%emt 00:02:59]} 45.
e5 {[%clk 00:05:53]} {[%emt 00:00:34]} Rxg4 {[%clk 00:21:06]} {[%emt 00:01:47]}
46. d5 {[%clk 00:06:20]} {[%emt 00:00:03]} Re4+ {[%clk 00:19:26]} {[%emt
00:02:10]} 47. Kf2 {[%clk 00:06:38]} {[%emt 00:00:12]} Rxe5 {[%clk 00:19:52]}
{[%emt 00:00:05]} 48. Rd4 {[%clk 00:07:06]} {[%emt 00:00:02]} Bd3 {[%clk
00:16:44]} {[%emt 00:03:38]} 49. d6 {[%clk 00:06:54]} {[%emt 00:00:41]} Ra8
{[%clk 00:17:07]} {[%emt 00:00:07]} 50. Nd5 {[%clk 00:04:19]} {[%emt 00:03:05]}
Rd8 {[%clk 00:13:41]} {[%emt 00:03:57]} 51. Nc7 {[%clk 00:04:46]} {[%emt
00:00:03]} Rd7 {[%clk 00:09:37]} {[%emt 00:04:34]} 52. Ra1 {[%clk 00:04:58]}
{[%emt 00:00:17]} Bg6 {[%clk 00:08:24]} {[%emt 00:01:44]} 53. Ra7 {[%clk
00:04:07]} {[%emt 00:01:21]} c3 {[%clk 00:08:25]} {[%emt 00:00:29]} 54. Rxb7
{[%clk 00:04:31]} {[%emt 00:00:06]} c2 {[%clk 00:08:50]} {[%emt 00:00:05]} 55.
Rc4 {[%clk 00:04:31]} {[%emt 00:00:29]} Rf7+ {[%clk 00:08:25]} {[%emt
00:00:56]} 56. Kg3 {[%clk 00:04:49]} {[%emt 00:00:11]} Re3+ {[%clk 00:08:45]}
{[%emt 00:00:10]} 57. Kh2 {[%clk 00:04:50]} {[%emt 00:00:28]} Re2+ {[%clk
00:08:58]} {[%emt 00:00:20]} 58. Kg3 {[%clk 00:05:11]} {[%emt 00:00:08]} Re3+
{[%clk 00:08:10]} {[%emt 00:01:18]} 59. Kh2 {[%clk 00:04:59]} {[%emt 00:00:42]}
Re2+ {[%clk 00:06:08]} {[%emt 00:02:33]} 60. Kg3 {[%clk 00:05:25]} {[%emt
00:00:03]} h5 {[%clk 00:06:35]} {[%emt 00:00:02]} 61. d7 {[%clk 00:04:06]}
{[%emt 00:01:49]} h4+ {[%clk 00:07:03]} {[%emt 00:00:03]} 62. Kg4 {[%clk
00:04:29]} {[%emt 00:00:07]} Rg2+ {[%clk 00:07:29]} {[%emt 00:00:04]} 63. Kh3
{[%clk 00:04:55]} {[%emt 00:00:03]} Rg3+ {[%clk 00:07:57]} {[%emt 00:00:03]} 64.
Kh2 {[%clk 00:05:22]} {[%emt 00:00:02]} Rf2+ {[%clk 00:08:24]} {[%emt
00:00:04]} 65. Kh1 {[%clk 00:05:49]} {[%emt 00:00:03]} c1=Q+ {[%clk 00:08:43]}
{[%emt 00:00:12]} 66. Rxc1 {[%clk 00:06:16]} {[%emt 00:00:02]} Be4# {[%clk
00:09:09]} {[%emt 00:00:04]} 0-1

[Event "Deloitte NK 2021"]
[Site "Hoogeveen, Netherlands"]
[Date "2021.10.19"]
[Round "5.6"]
[White "Beerdsen, Thomas"]
[Black "Warmerdam, Max"]
[Result "0-1"]
[TimeControl "90min/40moves + 30min + 30sec/move"]
[WhiteElo "2454"]
[BlackElo "2562"]

1. e4 {[%clk 01:30:57]} {[%emt 00:00:01]} e5 {[%clk 01:30:56]} {[%emt
00:00:05]} 2. d4 {[%clk 01:31:23]} {[%emt 00:00:04]} exd4 {[%clk 01:31:23]}
{[%emt 00:00:03]} 3. Qxd4 {[%clk 01:31:47]} {[%emt 00:00:06]} Nc6 {[%clk
01:31:50]} {[%emt 00:00:03]} 4. Qc4 {[%clk 01:32:10]} {[%emt 00:00:06]} Nf6
{[%clk 01:30:10]} {[%emt 00:02:11]} 5. Nc3 {[%clk 01:32:34]} {[%emt 00:00:06]}
Bb4 {[%clk 01:29:31]} {[%emt 00:01:09]} 6. Bd2 {[%clk 01:32:59]} {[%emt
00:00:06]} O-O {[%clk 01:29:39]} {[%emt 00:00:22]} 7. O-O-O {[%clk 01:33:22]}
{[%emt 00:00:06]} d6 {[%clk 01:27:56]} {[%emt 00:02:13]} 8. f3 {[%clk
01:33:45]} {[%emt 00:00:07]} Re8 {[%clk 01:25:25]} {[%emt 00:03:01]} 9. g4
{[%clk 01:34:04]} {[%emt 00:00:10]} Nd7 {[%clk 01:18:14]} {[%emt 00:07:42]} 10.
Qe2 {[%clk 01:32:10]} {[%emt 00:02:24]} Nb6 {[%clk 01:17:44]} {[%emt 00:01:00]}
11. Qf2 {[%clk 01:29:51]} {[%emt 00:02:48]} Be6 {[%clk 01:14:53]} {[%emt
00:03:22]} 12. Kb1 {[%clk 01:16:32]} {[%emt 00:13:48]} Qe7 {[%clk 01:05:36]}
{[%emt 00:09:47]} 13. Nge2 {[%clk 01:06:16]} {[%emt 00:10:46]} Rad8 {[%clk
00:44:13]} {[%emt 00:21:54]} 14. Nf4 {[%clk 00:55:23]} {[%emt 00:11:23]} Bxc3
{[%clk 00:42:19]} {[%emt 00:02:24]} 15. Bxc3 {[%clk 00:55:32]} {[%emt
00:00:21]} Na4 {[%clk 00:42:45]} {[%emt 00:00:04]} 16. Bxg7 {[%clk 00:40:52]}
{[%emt 00:15:10]} Kxg7 {[%clk 00:40:30]} {[%emt 00:02:45]} 17. Bb5 {[%clk
00:40:53]} {[%emt 00:00:29]} Nb6 {[%clk 00:33:49]} {[%emt 00:07:12]} 18. Bxc6
{[%clk 00:38:03]} {[%emt 00:03:19]} bxc6 {[%clk 00:34:06]} {[%emt 00:00:14]} 19.
Qd4+ {[%clk 00:35:13]} {[%emt 00:03:19]} f6 {[%clk 00:32:19]} {[%emt 00:02:17]}
20. g5 {[%clk 00:35:25]} {[%emt 00:00:18]} Nd7 {[%clk 00:18:43]} {[%emt
00:14:07]} 21. Rhg1 {[%clk 00:27:31]} {[%emt 00:08:23]} Kh8 {[%clk 00:18:03]}
{[%emt 00:01:11]} 22. Rg3 {[%clk 00:21:21]} {[%emt 00:06:40]} c5 {[%clk
00:16:25]} {[%emt 00:02:09]} 23. Qc3 {[%clk 00:20:59]} {[%emt 00:00:50]} Bf7
{[%clk 00:15:05]} {[%emt 00:01:51]} 24. g6 {[%clk 00:15:19]} {[%emt 00:06:09]}
hxg6 {[%clk 00:15:23]} {[%emt 00:00:13]} 25. Rdg1 {[%clk 00:11:05]} {[%emt
00:04:44]} Rg8 {[%clk 00:14:23]} {[%emt 00:01:30]} 26. Qd2 {[%clk 00:10:32]}
{[%emt 00:01:03]} g5 {[%clk 00:12:48]} {[%emt 00:02:05]} 27. Ne2 {[%clk
00:07:34]} {[%emt 00:03:27]} Rg6 {[%clk 00:10:54]} {[%emt 00:02:25]} 28. h4
{[%clk 00:07:01]} {[%emt 00:01:03]} Rdg8 {[%clk 00:06:39]} {[%emt 00:04:44]} 29.
hxg5 {[%clk 00:06:34]} {[%emt 00:00:58]} fxg5 {[%clk 00:05:41]} {[%emt
00:01:28]} 30. f4 {[%clk 00:06:06]} {[%emt 00:00:58]} Nf6 {[%clk 00:04:56]}
{[%emt 00:01:15]} 31. Nc3 {[%clk 00:01:43]} {[%emt 00:04:52]} gxf4 {[%clk
00:04:20]} {[%emt 00:01:06]} 32. Rh1+ {[%clk 00:01:33]} {[%emt 00:00:41]} Nh7
{[%clk 00:04:02]} {[%emt 00:00:48]} 33. Qh2 {[%clk 00:00:46]} {[%emt 00:01:17]}
Bxa2+ {[%clk 00:04:27]} {[%emt 00:00:05]} 0-1

[Event "Deloitte NK 2021"]
[Site "Hoogeveen, Netherlands"]
[Date "2021.10.19"]
[Round "5.7"]
[White "Pruijssers, Roeland"]
[Black "Vrolijk, Liam"]
[Result "1-0"]
[TimeControl "90min/40moves + 30min + 30sec/move"]
[WhiteElo "2561"]
[BlackElo "2480"]

1. c4 {[%clk 01:30:33]} {[%emt 00:00:26]} e5 {[%clk 01:29:20]} {[%emt
00:01:40]} 2. g3 {[%clk 01:30:53]} {[%emt 00:00:10]} c6 {[%clk 01:28:43]}
{[%emt 00:01:07]} 3. Nf3 {[%clk 01:18:16]} {[%emt 00:13:07]} e4 {[%clk
01:29:00]} {[%emt 00:00:14]} 4. Nd4 {[%clk 01:18:39]} {[%emt 00:00:06]} d5
{[%clk 01:29:22]} {[%emt 00:00:08]} 5. cxd5 {[%clk 01:18:22]} {[%emt 00:00:47]}
Qxd5 {[%clk 01:29:43]} {[%emt 00:00:09]} 6. Nb3 {[%clk 01:12:31]} {[%emt
00:06:21]} Nf6 {[%clk 01:17:00]} {[%emt 00:13:13]} 7. Nc3 {[%clk 01:12:50]}
{[%emt 00:00:11]} Qe5 {[%clk 01:04:09]} {[%emt 00:13:21]} 8. d4 {[%clk
00:59:55]} {[%emt 00:13:25]} exd3 {[%clk 00:54:40]} {[%emt 00:09:59]} 9. Bf4
{[%clk 00:59:05]} {[%emt 00:01:19]} Qh5 {[%clk 00:47:36]} {[%emt 00:07:34]} 10.
Qxd3 {[%clk 00:59:24]} {[%emt 00:00:12]} Be7 {[%clk 00:47:44]} {[%emt
00:00:22]} 11. e4 {[%clk 00:46:57]} {[%emt 00:12:57]} Na6 {[%clk 00:40:28]}
{[%emt 00:07:46]} 12. Be2 {[%clk 00:34:01]} {[%emt 00:13:26]} Nb4 {[%clk
00:34:07]} {[%emt 00:06:51]} 13. Qd1 {[%clk 00:29:27]} {[%emt 00:05:03]} Bg4
{[%clk 00:32:57]} {[%emt 00:01:41]} 14. Bxg4 {[%clk 00:27:08]} {[%emt
00:02:49]} Qxg4 {[%clk 00:26:11]} {[%emt 00:07:17]} 15. Qxg4 {[%clk 00:26:26]}
{[%emt 00:01:11]} Nxg4 {[%clk 00:26:33]} {[%emt 00:00:08]} 16. Rd1 {[%clk
00:26:43]} {[%emt 00:00:13]} g5 {[%clk 00:11:59]} {[%emt 00:15:04]} 17. Bc1
{[%clk 00:26:10]} {[%emt 00:01:02]} Rd8 {[%clk 00:10:02]} {[%emt 00:02:27]} 18.
Rxd8+ {[%clk 00:22:34]} {[%emt 00:04:06]} Kxd8 {[%clk 00:10:26]} {[%emt
00:00:06]} 19. Ke2 {[%clk 00:22:57]} {[%emt 00:00:08]} Kc8 {[%clk 00:09:32]}
{[%emt 00:01:24]} 20. h3 {[%clk 00:18:27]} {[%emt 00:05:00]} Ne5 {[%clk
00:09:46]} {[%emt 00:00:16]} 21. Nd4 {[%clk 00:14:25]} {[%emt 00:04:32]} Bf6
{[%clk 00:07:31]} {[%emt 00:02:44]} 22. f4 {[%clk 00:08:26]} {[%emt 00:06:30]}
gxf4 {[%clk 00:07:45]} {[%emt 00:00:16]} 23. gxf4 {[%clk 00:08:54]} {[%emt
00:00:02]} Ng6 {[%clk 00:07:55]} {[%emt 00:00:19]} 24. e5 {[%clk 00:09:04]}
{[%emt 00:00:21]} Be7 {[%clk 00:08:06]} {[%emt 00:00:19]} 25. Nf5 {[%clk
00:06:17]} {[%emt 00:03:17]} Rd8 {[%clk 00:08:03]} {[%emt 00:00:33]} 26. Ne4
{[%clk 00:05:25]} {[%emt 00:01:21]} Nd5 {[%clk 00:05:06]} {[%emt 00:03:28]} 27.
Kf3 {[%clk 00:05:29]} {[%emt 00:00:26]} Kd7 {[%clk 00:05:17]} {[%emt 00:00:19]}
28. h4 {[%clk 00:03:00]} {[%emt 00:02:59]} h5 {[%clk 00:05:23]} {[%emt
00:00:23]} 29. Ng5 {[%clk 00:03:17]} {[%emt 00:00:13]} f6 {[%clk 00:03:55]}
{[%emt 00:01:58]} 30. e6+ {[%clk 00:03:35]} {[%emt 00:00:13]} Kc7 {[%clk
00:04:20]} {[%emt 00:00:05]} 31. Nf7 {[%clk 00:03:04]} {[%emt 00:01:01]} Rg8
{[%clk 00:04:44]} {[%emt 00:00:05]} 32. N5h6 {[%clk 00:00:43]} {[%emt
00:02:52]} Rg7 {[%clk 00:04:19]} {[%emt 00:00:55]} 33. Nf5 {[%clk 00:01:06]}
{[%emt 00:00:06]} Rg8 {[%clk 00:04:45]} {[%emt 00:00:04]} 34. N7h6 {[%clk
00:00:33]} {[%emt 00:01:04]} Re8 {[%clk 00:04:23]} {[%emt 00:00:52]} 35. Rg1
{[%clk 00:00:48]} {[%emt 00:00:15]} Nf8 {[%clk 00:03:06]} {[%emt 00:01:47]} 36.
Ng7 {[%clk 00:01:16]} {[%emt 00:00:02]} Rc8 {[%clk 00:03:05]} {[%emt 00:00:31]}
37. f5 {[%clk 00:01:32]} {[%emt 00:00:14]} c5 {[%clk 00:02:55]} {[%emt
00:00:41]} 38. Nxh5 {[%clk 00:01:31]} {[%emt 00:00:30]} 1-0